bitfinex/quotes_BTCUSD_20220103
["timestamp","ask_amount","ask_price","bid_price","bid_amount"]
[1641242251861,1.63,45865.0,45864.0,0.00809102]
[1641242252061,1.63,45865.0,45864.0,1.02e-06]
[1641242252319,0.00129732,45862.0,45849.0,0.32094686]
[1641242252519,0.00129732,45862.0,45844.0,0.47419669]
[1641242253020,0.28166136,45861.0,45854.0,0.08331526]
[1641242253216,0.41395467,45861.0,45854.0,0.08331526]
[1641242253418,0.28166136,45861.0,45854.0,0.08331526]
[1641242253618,0.00129732,45862.0,45854.0,0.18331526]
[1641242253819,0.73454686,45868.0,45861.0,0.08905736]
[1641242254019,0.73454686,45868.0,45861.0,0.13905736]
[1641242254020,0.4136,45868.0,45861.0,0.13905736]
[1641242254618,0.4136,45868.0,45861.0,0.05]
[1641242254819,0.2936998,45867.0,45861.0,0.05]
[1641242255018,0.2936998,45867.0,45860.0,0.34119037]
[1641242255220,0.29125927,45867.0,45860.0,0.05]
[1641242255523,0.29125927,45867.0,45854.0,0.10576172]
[1641242255721,0.4136,45868.0,45860.0,0.09735511]
[1641242255969,0.4136,45868.0,45860.0,0.19735511]
[1641242256162,0.29523836,45867.0,45861.0,7.196e-05]
[1641242256366,0.4136,45868.0,45861.0,7.196e-05]
[1641242256664,0.65820578,45868.0,45861.0,7.196e-05]
[1641242257166,0.29792316,45867.0,45861.0,7.196e-05]
[1641242257366,0.35244116,45867.0,45861.0,7.196e-05]
[1641242258368,0.29792316,45867.0,45861.0,7.196e-05]
[1641242259569,0.29298053,45867.0,45861.0,7.196e-05]
[1641242260417,0.34749853,45867.0,45861.0,7.196e-05]
[1641242260616,0.31373459,45866.0,45861.0,7.196e-05]
[1641242261015,0.25921159,45866.0,45861.0,7.196e-05]
[1641242261219,0.4136,45868.0,45862.0,0.38358061]
[1641242261417,0.4136,45868.0,45863.0,0.04057486]
[1641242261618,0.4136,45868.0,45866.0,0.0801102]
[1641242261816,0.4136,45868.0,45866.0,0.13685273]
[1641242262021,0.4136,45868.0,45867.0,0.00790148]
[1641242262215,0.001,45869.0,45868.0,0.00670151]
[1641242262419,0.001,45869.0,45868.0,0.054499]
[1641242262615,0.51173285,45877.0,45868.0,0.054499]
[1641242263462,0.0567477,45879.0,45873.0,0.08917791]
[1641242263654,0.0567477,45879.0,45873.0,0.18917791]
[1641242264055,0.07835582,45872.0,45868.0,0.054499]
[1641242264256,0.87,45878.0,45869.0,0.08711615]
[1641242264457,0.87,45878.0,45868.0,0.054499]
[1641242264458,0.87,45878.0,45864.0,0.43906768]
[1641242264657,0.054503,45876.0,45866.0,0.054502]
[1641242265157,0.87,45878.0,45866.0,0.29660688]
[1641242266358,0.87,45878.0,45866.0,0.39560688]
[1641242266558,0.87,45878.0,45871.0,0.09903854]
[1641242267059,0.0022467,45879.0,45871.0,0.14903854]
[1641242267707,0.0022467,45879.0,45871.0,0.09903854]
[1641242268110,0.0022467,45879.0,45871.0,0.14903854]
[1641242268509,0.0022467,45879.0,45871.0,0.19903854]
[1641242269308,0.0022467,45879.0,45871.0,0.14903854]
[1641242269508,0.054501,45878.0,45872.0,0.05]
[1641242270312,0.3703477,45880.0,45871.0,0.14903854]
[1641242270608,0.054501,45881.0,45871.0,0.48633482]
[1641242271070,1.20370668,45885.0,45879.0,0.07331511]
[1641242271071,0.054499,45880.0,45879.0,0.07331511]
[1641242271270,0.4136,45885.0,45879.0,0.07331511]
[1641242271471,0.4136,45885.0,45880.0,0.05]
[1641242272466,0.4136,45885.0,45881.0,0.00598528]
[1641242272667,0.4136,45885.0,45880.0,0.05]
[1641242272867,0.4136,45885.0,45874.0,0.00507641]
[1641242272868,0.67375375,45885.0,45873.0,0.27584096]
[1641242273069,0.67375375,45885.0,45874.0,0.00581233]
[1641242273368,0.67375375,45885.0,45873.0,0.27720257]
[1641242273573,0.054496,45882.0,45874.0,0.00533322]
[1641242273767,0.054496,45882.0,45873.0,0.27770066]
[1641242274068,0.67375375,45885.0,45873.0,0.27570543]
[1641242274268,0.67375375,45885.0,45874.0,0.00595761]
[1641242274717,0.054497,45884.0,45874.0,0.00595761]
[1641242274919,0.4136,45885.0,45874.0,0.00595761]
[1641242274920,0.29277388,45882.0,45874.0,0.00595761]
[1641242275123,0.29277388,45882.0,45873.0,0.05]
[1641242275124,0.40177588,45882.0,45873.0,0.05]
[1641242275322,0.29277388,45882.0,45867.0,6.505e-05]
[1641242275520,0.17113535,45881.0,45867.0,6.505e-05]
[1641242275720,0.054506,45875.0,45867.0,6.505e-05]
[1641242276721,0.29037717,45875.0,45867.0,6.505e-05]
[1641242277322,0.28537717,45875.0,45867.0,6.505e-05]
[1641242277922,0.049506,45875.0,45867.0,6.505e-05]
[1641242278128,0.049506,45875.0,45869.0,0.07266398]
[1641242278550,0.049506,45875.0,45869.0,0.12266398]
[1641242279352,1.01884078,45872.0,45869.0,0.05]
[1641242279653,1.01884078,45872.0,45867.0,6.505e-05]
[1641242279852,1.01754078,45872.0,45867.0,0.00728531]
[1641242280053,1.01754078,45872.0,45869.0,0.054501]
[1641242280252,1.01754078,45872.0,45869.0,0.00782012]
[1641242280454,1.01754078,45872.0,45867.0,0.0078563]
[1641242280654,0.26609735,45879.0,45868.0,0.00512955]
[1641242280852,1.23164378,45880.0,45869.0,0.24593923]
[1641242281053,0.054502,45876.0,45869.0,0.28985395]
[1641242281259,0.054502,45876.0,45870.0,0.06003942]
[1641242281655,1.23164378,45878.0,45872.0,0.07622742]
[1641242281856,1.23164378,45878.0,45873.0,0.42547268]
[1641242282215,1.22164378,45875.0,45874.0,0.054496]
[1641242282415,1.22164378,45875.0,45873.0,0.42547268]
[1641242282817,0.108999,45883.0,45874.0,0.00794392]
[1641242283016,0.108999,45883.0,45873.0,0.43297023]
[1641242283215,0.108999,45883.0,45873.0,0.42547268]
[1641242283516,0.054498,45879.0,45873.0,0.43082206]
[1641242283717,2.08921809,45884.0,45875.0,0.00791221]
[1641242283718,1.7243013,45884.0,45875.0,0.00791221]
[1641242283919,1.7243013,45884.0,45876.0,0.05]
[1641242284319,1.7243013,45884.0,45876.0,0.054493]
[1641242284519,0.054495,45882.0,45876.0,0.05]
[1641242284717,0.25008715,45881.0,45876.0,0.05]
[1641242284917,0.25008715,45881.0,45875.0,0.00610489]
[1641242285117,0.25008715,45881.0,45867.0,0.00548479]
[1641242285317,0.054495,45882.0,45874.0,0.31488414]
[1641242285516,1.7243013,45884.0,45874.0,0.31488414]
[1641242285517,1.7243013,45884.0,45874.0,0.05793553]
[1641242285717,1.7787933,45884.0,45875.0,0.00587666]
[1641242285958,1.7787933,45884.0,45874.0,0.05]
[1641242286154,1.7787933,45884.0,45873.0,0.054492]
[1641242286155,1.10831131,45881.0,45873.0,0.054492]
[1641242286354,1.10831131,45881.0,45875.0,0.30984598]
[1641242286559,1.10831131,45882.0,45877.0,0.054492]
[1641242287758,1.10831131,45882.0,45874.0,0.00768986]
[1641242287959,1.10831131,45882.0,45864.0,0.00122684]
[1641242288157,0.32147678,45877.0,45866.0,0.27160712]
[1641242288359,0.32147678,45877.0,45864.0,0.00122684]
[1641242288560,0.37598478,45877.0,45864.0,0.00122684]
[1641242288758,0.30613127,45876.0,45864.0,0.00122684]
[1641242288960,0.37483127,45876.0,45859.0,0.00025]
[1641242289163,0.0012357,45874.0,45859.0,0.00025]
[1641242289359,0.24280469,45863.0,45859.0,0.00025]
[1641242289556,0.00125839,45868.0,45859.0,0.00025]
[1641242289557,0.054521,45864.0,45859.0,0.00025]
[1641242290614,0.054521,45864.0,45860.0,0.41269652]
[1641242291414,0.054521,45864.0,45859.0,0.09045982]
[1641242291613,0.054513,45866.0,45859.0,0.14045982]
[1641242291822,0.054513,45866.0,45860.0,0.00791387]
[1641242292215,0.33709717,45866.0,45860.0,0.00791387]
[1641242293017,1.10831131,45868.0,45864.0,0.09628876]
[1641242293216,1.10831131,45868.0,45865.0,0.054507]
[1641242293458,1.10831131,45867.0,45865.0,0.054507]
[1641242294053,0.28214686,45866.0,45860.0,0.00696658]
[1641242294252,0.28214686,45866.0,45859.0,0.05990789]
[1641242294555,0.60723214,45863.0,45859.0,0.00025]
[1641242294952,0.3198249,45862.0,45859.0,0.00025]
[1641242295152,0.92705704,45862.0,45859.0,0.00025]
[1641242295356,0.98157604,45862.0,45859.0,0.00025]
[1641242295552,0.28271279,45861.0,45859.0,0.00025]
[1641242295754,1.04723214,45860.0,45859.0,0.00025]
[1641242295957,1.34154911,45860.0,45857.0,0.00811973]
[1641242296158,0.28905508,45859.0,45843.0,0.00724388]
[1641242296355,1.41167911,45860.0,45843.0,0.00724388]
[1641242296356,0.00125909,45858.0,45843.0,0.00724388]
[1641242296554,0.05578809,45858.0,45843.0,0.00690674]
[1641242296755,0.05578809,45858.0,45841.0,0.08724342]
[1641242296756,0.29605278,45857.0,45848.0,0.054527]
[1641242296957,0.109062,45856.0,45843.0,0.04971383]
[1641242297215,0.31932685,45855.0,45843.0,0.05002776]
[1641242297414,0.29551929,45854.0,45844.0,0.30156946]
[1641242297713,0.28282432,45854.0,45844.0,0.30156946]
[1641242298113,0.109066,45853.0,45844.0,0.44009445]
[1641242298313,0.054528,45853.0,45844.0,0.44009445]
[1641242298513,0.29056491,45855.0,45844.0,0.35610046]
[1641242298813,0.89184843,45855.0,45844.0,0.30165483]
[1641242299013,0.28442031,45854.0,45844.0,0.30165483]
[1641242299214,0.23961334,45853.0,45844.0,0.30165483]
[1641242299513,0.29414634,45853.0,45844.0,0.30165483]
[1641242299716,0.40321134,45853.0,45844.0,0.30165483]
[1641242300115,1.01044348,45853.0,45845.0,0.05]
[1641242300716,0.054532,45849.0,45845.0,0.05]
[1641242300969,0.054532,45849.0,45844.0,0.05008537]
[1641242301168,0.28247686,45848.0,45844.0,8.537e-05]
[1641242301371,0.00127788,45847.0,45844.0,8.537e-05]
[1641242301567,0.353005,45846.0,45844.0,5.37e-06]
[1641242301768,0.35373276,45845.0,45844.0,5.37e-06]
[1641242301966,0.70673776,45845.0,45844.0,5.37e-06]
[1641242302568,1.3139699,45845.0,45844.0,5.37e-06]
[1641242302967,0.9609649,45845.0,45844.0,5.37e-06]
[1641242303568,0.35373276,45845.0,45844.0,5.37e-06]
[1641242304169,0.70673776,45845.0,45844.0,5.37e-06]
[1641242304572,0.35373276,45845.0,45844.0,5.37e-06]
[1641242305300,0.90498215,45847.0,45844.0,5.37e-06]
[1641242305903,0.85043715,45846.0,45844.0,5.37e-06]
[1641242306203,0.83043715,45846.0,45844.0,5.37e-06]
[1641242306405,0.83043715,45846.0,45845.0,0.07862506]
[1641242306807,0.83043715,45846.0,45845.0,0.12862506]
[1641242307007,0.00812012,45849.0,45845.0,0.38970643]
[1641242307405,0.00812012,45849.0,45845.0,0.12862506]
[1641242307607,0.61078576,45849.0,45845.0,0.12862506]
[1641242307804,0.61078576,45849.0,45846.0,0.054527]
[1641242308206,0.60266564,45849.0,45845.0,0.05]
[1641242308473,0.60266564,45849.0,45844.0,5.37e-06]
[1641242308867,0.60266564,45849.0,45845.0,0.054528]
[1641242309064,0.60266564,45849.0,45848.0,0.08379632]
[1641242309269,0.60266564,45849.0,45848.0,0.13379632]
[1641242309467,0.60266564,45849.0,45848.0,0.18379632]
[1641242309665,0.60266564,45849.0,45848.0,0.13379632]
[1641242309864,0.60266564,45849.0,45848.0,0.18379632]
[1641242310069,0.60266564,45851.0,45850.0,0.054518]
[1641242310270,0.60266564,45851.0,45848.0,0.05]
[1641242310465,0.60266564,45851.0,45847.0,0.00123249]
[1641242310466,0.33287254,45855.0,45847.0,0.05]
[1641242310865,0.33287254,45855.0,45844.0,7.982e-05]
[1641242311066,0.00121813,45853.0,45844.0,7.982e-05]
[1641242311669,0.60266564,45850.0,45844.0,7.982e-05]
[1641242312070,0.60266564,45849.0,45844.0,7.982e-05]
[1641242312721,0.054537,45848.0,45844.0,7.982e-05]
[1641242312924,1.02266564,45845.0,45844.0,7.982e-05]
[1641242313122,0.60266564,45845.0,45844.0,7.982e-05]
[1641242313723,0.60266564,45846.0,45844.0,7.982e-05]
[1641242313923,0.48815643,45846.0,45844.0,7.982e-05]
[1641242314827,0.83893948,45850.0,45844.0,7.982e-05]
[1641242315024,0.83893948,45852.0,45844.0,7.982e-05]
[1641242315429,0.054534,45849.0,45844.0,7.982e-05]
[1641242315627,0.83893948,45852.0,45844.0,7.982e-05]
[1641242316062,0.83893948,45851.0,45844.0,7.982e-05]
[1641242316563,0.83393948,45851.0,45844.0,7.982e-05]
[1641242316762,0.88847148,45851.0,45844.0,0.47062583]
[1641242316964,0.83393948,45852.0,45844.0,0.52062583]
[1641242317365,0.83393948,45852.0,45844.0,0.12495166]
[1641242317766,0.83393948,45852.0,45844.0,0.05007982]
[1641242317967,0.10908,45850.0,45844.0,7.982e-05]
[1641242318165,0.00123003,45848.0,45844.0,7.982e-05]
[1641242318365,0.3304724,45851.0,45844.0,9.82e-06]
[1641242318366,0.00122638,45846.0,45844.0,9.82e-06]
[1641242318567,0.353005,45845.0,45844.0,9.82e-06]
[1641242318963,0.453005,45845.0,45844.0,9.82e-06]
[1641242319471,0.77923487,45845.0,45844.0,1.562e-05]
[1641242319721,1.58546737,45845.0,45844.0,1.562e-05]
[1641242319922,1.64001937,45845.0,45844.0,1.562e-05]
[1641242320221,1.67998937,45845.0,45844.0,1.562e-05]
[1641242320423,1.62543737,45845.0,45844.0,1.562e-05]
[1641242320821,1.27243237,45845.0,45844.0,1.562e-05]
[1641242321622,0.03997,45845.0,45844.0,1.562e-05]
[1641242322322,0.03997,45845.0,45844.0,0.09925744]
[1641242322721,0.03997,45845.0,45844.0,0.14925744]
[1641242322922,0.03997,45845.0,45844.0,0.05001562]
[1641242323127,0.03497,45845.0,45844.0,0.05001562]
[1641242323493,0.32660726,45845.0,45844.0,1.562e-05]
[1641242324393,0.67961226,45845.0,45844.0,1.562e-05]
[1641242324796,0.03497,45845.0,45844.0,1.562e-05]
[1641242325001,0.03497,45845.0,45842.0,0.44153855]
[1641242325194,0.03497,45845.0,45842.0,0.49153855]
[1641242325797,0.03497,45845.0,45843.0,0.5681627]
[1641242326194,0.59830222,45849.0,45843.0,0.5681627]
[1641242326396,0.59830222,45849.0,45846.0,0.054527]
[1641242326595,0.59830222,45849.0,45846.0,0.104527]
[1641242327209,0.60643379,45850.0,45846.0,0.104527]
[1641242327512,0.60643379,45850.0,45843.0,0.04362502]
[1641242327711,0.60643379,45850.0,45840.0,0.01577586]
[1641242327911,0.60643379,45850.0,45840.0,0.00813157]
[1641242328316,0.60643379,45850.0,45840.0,0.01573674]
[1641242328612,0.59830222,45846.0,45841.0,0.31360064]
[1641242329011,0.59830222,45846.0,45841.0,0.26997285]
[1641242329313,0.59830222,45846.0,45841.0,0.31997285]
[1641242329512,0.59830222,45848.0,45841.0,0.31997285]
[1641242329911,0.59830222,45848.0,45843.0,0.04362591]
[1641242330113,0.59830222,45848.0,45845.0,0.08062941]
[1641242330512,0.59830222,45848.0,45845.0,0.13062941]
[1641242331273,0.054538,45848.0,45845.0,0.05]
[1641242331473,0.054538,45848.0,45842.0,6.788e-05]
[1641242331872,0.59830222,45849.0,45842.0,6.788e-05]
[1641242332273,0.054539,45847.0,45842.0,6.788e-05]
[1641242332672,0.59830222,45849.0,45842.0,6.788e-05]
[1641242332874,0.59830222,45848.0,45843.0,0.04362658]
[1641242333072,0.59830222,45848.0,45843.0,0.41901503]
[1641242333676,0.59830222,45849.0,45843.0,0.37538845]
[1641242333874,0.59830222,45849.0,45847.0,0.08264136]
[1641242334075,0.33509662,45849.0,45847.0,0.17626422]
[1641242334276,0.33509662,45849.0,45847.0,0.13264136]
[1641242334914,0.00813157,45850.0,45847.0,0.38624439]
[1641242335414,0.00813157,45850.0,45847.0,0.44077239]
[1641242335616,0.00813157,45850.0,45847.0,0.38624439]
[1641242336215,0.4136,45854.0,45847.0,0.38624439]
[1641242336414,0.4136,45854.0,45848.0,0.054526]
[1641242336614,0.4136,45854.0,45848.0,0.09814745]
[1641242337214,0.4136,45854.0,45848.0,0.054526]
[1641242337615,0.4136,45854.0,45851.0,0.43706553]
[1641242337816,0.4136,45854.0,45852.0,0.05452]
[1641242340067,0.4136,45854.0,45851.0,0.14361585]
[1641242340666,0.4136,45854.0,45852.0,6.139e-05]
[1641242341271,0.4136,45854.0,45852.0,0.05458339]
[1641242342328,0.4136,45854.0,45852.0,6.139e-05]
[1641242342628,1.13,45853.0,45852.0,6.139e-05]
[1641242342824,1.42218263,45853.0,45852.0,6.139e-05]
[1641242343427,2.02090914,45853.0,45852.0,6.139e-05]
[1641242343831,1.7300135,45853.0,45852.0,6.139e-05]
[1641242344028,1.13,45853.0,45852.0,6.139e-05]
[1641242344630,1.7288777,45853.0,45852.0,6.139e-05]
[1641242345432,1.13,45853.0,45852.0,6.139e-05]
[1641242346069,1.0124777,45854.0,45852.0,6.139e-05]
[1641242347071,4.0,45853.0,45852.0,6.139e-05]
[1641242347874,3.995,45853.0,45852.0,6.139e-05]
[1641242348873,4.5938777,45853.0,45852.0,6.139e-05]
[1641242349275,3.995,45853.0,45852.0,6.139e-05]
[1641242350229,0.054531,45852.0,45847.0,0.05]
[1641242350427,0.054531,45852.0,45848.0,0.00550694]
[1641242350627,0.054531,45852.0,45846.0,0.00714587]
[1641242350828,0.054531,45852.0,45845.0,0.12184015]
[1641242351027,0.054531,45852.0,45846.0,0.05]
[1641242351229,0.59671419,45851.0,45846.0,0.05]
[1641242351830,0.054531,45852.0,45846.0,0.05]
[1641242352629,0.054531,45852.0,45845.0,0.06542015]
[1641242352834,0.00124467,45849.0,45834.0,0.5739]
[1641242353031,0.00128054,45843.0,45832.0,0.00022]
[1641242353329,0.08902054,45843.0,45833.0,0.04363472]
[1641242353574,0.30760445,45842.0,45832.0,0.00022]
[1641242353780,0.66479709,45842.0,45832.0,0.00022]
[1641242353978,0.00129502,45838.0,45832.0,0.00022]
[1641242354180,0.5146772,45837.0,45832.0,0.00022]
[1641242354379,0.56923113,45837.0,45832.0,0.00011]
[1641242354580,0.56923113,45837.0,45828.0,0.00033]
[1641242354581,0.30264464,45836.0,45828.0,0.00033]
[1641242354779,0.30264464,45836.0,45818.0,0.00022]
[1641242354780,0.054563,45833.0,45818.0,0.00022]
[1641242354978,0.39677702,45829.0,45818.0,0.00022]
[1641242355181,0.13125116,45825.0,45821.0,0.00011]
[1641242355380,0.05307288,45823.0,45818.0,0.00022]
[1641242355579,0.35427255,45822.0,45818.0,0.00022]
[1641242355778,0.1101352,45821.0,45819.0,0.00033]
[1641242355978,1.983005,45820.0,45819.0,0.00033]
[1641242356180,1.983005,45820.0,45818.0,0.00011]
[1641242356379,2.03758188,45820.0,45818.0,0.00011]
[1641242356785,1.93927698,45819.0,45816.0,0.00044]
[1641242356982,2.30296073,45818.0,45816.0,0.00044]
[1641242357232,2.30296073,45818.0,45813.0,0.00044]
[1641242357424,2.30296073,45818.0,45807.0,0.00018]
[1641242357425,1.684585,45817.0,45807.0,0.00018]
[1641242357624,0.35429686,45816.0,45807.0,0.00018]
[1641242358425,0.109172,45813.0,45807.0,0.07286359]
[1641242358623,0.00129186,45816.0,45807.0,0.4587056]
[1641242358829,0.59671419,45819.0,45807.0,0.46511862]
[1641242359025,0.59671419,45819.0,45814.0,0.07665792]
[1641242359225,0.59671419,45821.0,45816.0,0.054558]
[1641242359429,0.59671419,45821.0,45816.0,0.06178327]
[1641242359728,0.59671419,45827.0,45818.0,0.00571652]
[1641242359926,0.59671419,45827.0,45816.0,0.31853206]
[1641242360126,0.59377299,45827.0,45820.0,0.00531482]
[1641242360327,0.59377299,45829.0,45820.0,0.00531482]
[1641242360527,0.59377299,45829.0,45821.0,0.00745191]
[1641242360724,0.59377299,45829.0,45816.0,0.05]
[1641242360995,0.07340168,45832.0,45815.0,0.05]
[1641242361193,0.00126089,45827.0,45813.0,0.00125595]
[1641242361394,0.00126089,45827.0,45814.0,0.00519087]
[1641242361593,0.054567,45822.0,45814.0,0.00519087]
[1641242361793,0.2739351,45825.0,45817.0,8.265e-05]
[1641242361996,0.31956578,45826.0,45817.0,8.265e-05]
[1641242362192,0.26499978,45826.0,45817.0,8.265e-05]
[1641242362392,0.11039589,45827.0,45817.0,8.265e-05]
[1641242362393,0.11039589,45827.0,45818.0,0.09777414]
[1641242362593,0.11039589,45827.0,45810.0,0.61608327]
[1641242362594,0.0134132,45818.0,45807.0,0.00018]
[1641242362794,0.00129333,45808.0,45807.0,0.00018]
[1641242363193,0.00129333,45808.0,45805.0,0.00044]
[1641242363391,1.983005,45807.0,45805.0,0.00044]
[1641242363794,0.00129333,45808.0,45805.0,0.00044]
[1641242363997,0.45427256,45807.0,45804.0,0.00055]
[1641242364194,0.353005,45805.0,45803.0,0.00022]
[1641242364392,0.10126756,45807.0,45801.0,0.00111]
[1641242364393,1.983005,45803.0,45801.0,0.00111]
[1641242364596,0.353005,45802.0,45798.0,0.0086079]
[1641242364828,0.407606,45802.0,45798.0,0.0086079]
[1641242365027,0.31298084,45800.0,45798.0,0.0086079]
[1641242365228,1.983005,45799.0,45798.0,7.9e-06]
[1641242365426,2.16218146,45799.0,45797.0,7.9e-06]
[1641242365632,2.16218146,45799.0,45788.0,0.00044]
[1641242365633,2.16218146,45799.0,45796.0,0.0002279]
[1641242365828,1.63,45798.0,45793.0,0.00033]
[1641242366027,2.786,45795.0,45791.0,0.00011]
[1641242366228,1.623005,45794.0,45790.0,0.00011]
[1641242366428,0.00124673,45791.0,45787.0,0.07061255]
[1641242366627,0.00124673,45791.0,45789.0,0.40607713]
[1641242366829,0.27,45798.0,45796.0,0.09865175]
[1641242367030,0.05459887,45799.0,45796.0,0.09865175]
[1641242367232,0.05580996,45797.0,45786.0,0.00054]
[1641242367431,0.00121196,45797.0,45786.0,0.00054]
[1641242367828,0.00127444,45791.0,45786.0,0.00054]
[1641242368229,0.00127444,45791.0,45787.0,0.07407856]
[1641242369461,0.05587844,45791.0,45787.0,0.07407856]
[1641242369865,0.00127444,45791.0,45787.0,0.07407856]
[1641242370164,0.35586882,45796.0,45787.0,0.07407856]
[1641242370165,0.30126282,45796.0,45787.0,0.07407856]
[1641242370462,0.0546,45797.0,45793.0,0.40968952]
[1641242371063,0.0546,45797.0,45794.0,0.08242296]
[1641242371264,0.58874537,45801.0,45794.0,0.08242296]
[1641242371466,0.58874537,45801.0,45794.0,0.37780776]
[1641242371664,0.58874537,45801.0,45795.0,0.00510743]
[1641242371865,0.13231599,45808.0,45794.0,0.47780776]
[1641242371866,0.58874537,45804.0,45803.0,0.41421341]
[1641242372066,0.58874537,45804.0,45803.0,0.46993172]
[1641242372366,0.58874537,45804.0,45803.0,0.46421341]
[1641242372768,0.58874537,45812.0,45811.0,0.44065825]
[1641242372969,0.58874537,45812.0,45811.0,0.52857747]
[1641242373165,0.58874537,45812.0,45811.0,0.62857747]
[1641242373366,0.58874537,45812.0,45811.0,0.95345746]
[1641242373568,0.58874537,45817.0,45816.0,0.23963661]
[1641242373765,0.58874537,45817.0,45811.0,0.62857747]
[1641242373766,0.58874537,45817.0,45813.0,0.054559]
[1641242374166,0.0134132,45818.0,45813.0,0.054559]
[1641242374370,0.0134132,45818.0,45813.0,0.11861]
[1641242374565,0.0134132,45818.0,45815.0,0.109104]
[1641242374768,0.58874537,45824.0,45815.0,0.16034105]
[1641242374968,0.58874537,45824.0,45817.0,0.054547]
[1641242375172,0.58874537,45824.0,45816.0,0.29235812]
[1641242375368,0.83725846,45828.0,45823.0,0.41961558]
[1641242375369,0.58874537,45828.0,45823.0,0.41961558]
[1641242375567,0.58874537,45828.0,45825.0,0.054545]
[1641242375768,0.58374537,45828.0,45826.0,0.33498824]
[1641242375971,0.58374537,45828.0,45826.0,0.38498824]
[1641242376170,0.4136,45833.0,45826.0,0.38498824]
[1641242376972,0.4136,45833.0,45827.0,0.054544]
[1641242377572,0.4136,45833.0,45831.0,0.07986306]
[1641242377776,0.4136,45833.0,45827.0,0.054544]
[1641242377973,0.4136,45833.0,45820.0,0.054553]
[1641242378173,0.4136,45833.0,45813.0,0.00977849]
[1641242378174,0.00129056,45830.0,45813.0,0.00977849]
[1641242378575,0.00129056,45830.0,45815.0,0.04364437]
[1641242378776,0.00129056,45830.0,45825.0,0.07316288]
[1641242378975,0.25422076,45831.0,45825.0,0.07316288]
[1641242379172,0.4136,45833.0,45825.0,0.07316288]
[1641242379173,0.468157,45833.0,45825.0,0.07316288]
[1641242379374,0.4136,45833.0,45825.0,0.07316288]
[1641242379813,0.27571177,45832.0,45825.0,0.07316288]
[1641242380018,0.28403821,45832.0,45820.0,0.25511041]
[1641242380214,0.31831134,45830.0,45820.0,0.30511041]
[1641242380418,0.4136,45833.0,45820.0,0.30511041]
[1641242380615,0.4136,45833.0,45820.0,0.35511041]
[1641242380813,0.4136,45833.0,45820.0,0.46421441]
[1641242381014,0.4136,45833.0,45826.0,0.09321191]
[1641242381413,0.71927195,45833.0,45826.0,0.09321191]
[1641242381613,0.4136,45833.0,45826.0,0.09321191]
[1641242381816,0.4136,45833.0,45820.0,0.74136493]
[1641242382316,0.4136,45833.0,45821.0,0.00720847]
[1641242382513,0.4136,45833.0,45822.0,0.00709222]
[1641242382514,0.468156,45833.0,45822.0,0.00709222]
[1641242382718,0.468156,45833.0,45823.0,0.00780954]
[1641242383020,0.28938653,45832.0,45821.0,7.037e-05]
[1641242383214,0.23482593,45832.0,45821.0,7.037e-05]
[1641242383484,1.59,45831.0,45815.0,0.00798434]
[1641242383684,0.23482593,45832.0,45816.0,0.00571226]
[1641242383885,0.30301083,45822.0,45813.0,0.008533]
[1641242384185,0.23921912,45827.0,45813.0,0.008533]
[1641242384186,0.00124025,45823.0,45813.0,0.008533]
[1641242384885,0.00124025,45823.0,45817.0,0.09329616]
[1641242385288,0.054567,45824.0,45817.0,0.09329616]
[1641242385788,0.054567,45824.0,45819.0,0.32767424]
[1641242385986,0.00121938,45830.0,45819.0,0.66939678]
[1641242386185,0.054564,45827.0,45824.0,0.09459096]
[1641242386386,0.00121938,45830.0,45824.0,0.09459096]
[1641242386986,0.00121938,45830.0,45826.0,0.28389454]
[1641242387231,0.4136,45833.0,45832.0,0.0980921]
[1641242388024,0.4136,45833.0,45826.0,0.28389454]
[1641242388232,0.28349804,45832.0,45828.0,0.00810855]
[1641242388426,0.2847341,45832.0,45828.0,0.00810855]
[1641242388629,0.17226364,45831.0,45828.0,0.00810855]
[1641242389025,1.63,45829.0,45811.0,0.00121678]
[1641242389232,0.00129767,45812.0,45810.0,0.27107779]
[1641242389426,0.20621235,45811.0,45808.0,0.07467495]
[1641242390025,0.20621235,45811.0,45808.0,0.08116778]
[1641242390227,0.0237,45812.0,45808.0,0.08116778]
[1641242390424,0.4136,45818.0,45809.0,0.26008835]
[1641242390627,0.4136,45818.0,45815.0,0.42309368]
[1641242390831,0.4136,45818.0,45816.0,0.07299882]
[1641242391073,0.4136,45818.0,45816.0,0.07848853]
[1641242391271,0.4136,45818.0,45817.0,0.31704022]
[1641242391470,0.4136,45818.0,45817.0,0.31675998]
[1641242391771,0.4136,45818.0,45817.0,0.63161066]
[1641242392471,0.4136,45818.0,45817.0,0.36048692]
[1641242392672,0.4136,45818.0,45804.0,0.04632322]
[1641242393072,0.4136,45818.0,45805.0,0.13508312]
[1641242393281,0.2813927,45817.0,45801.0,0.00810881]
[1641242393479,0.05458,45816.0,45804.0,0.27925817]
[1641242393673,0.05458,45816.0,45807.0,0.27913616]
[1641242393874,0.05458,45816.0,45808.0,0.09866908]
[1641242394273,0.4136,45818.0,45815.0,0.07648791]
[1641242394479,0.4136,45818.0,45816.0,0.36885893]
[1641242394733,0.4136,45818.0,45817.0,0.24616971]
[1641242394926,0.4136,45818.0,45817.0,0.29616971]
[1641242395125,0.4136,45818.0,45817.0,0.05]
[1641242395527,0.4136,45818.0,45817.0,0.27916982]
[1641242397426,0.4136,45818.0,45816.0,0.05]
[1641242397629,0.4136,45818.0,45815.0,0.05]
[1641242397827,0.4136,45818.0,45806.0,7.74e-05]
[1641242398030,0.0012202,45816.0,45810.0,0.00812025]
[1641242398575,0.0557962,45816.0,45810.0,0.00812025]
[1641242398880,0.59148637,45817.0,45813.0,0.09482466]
[1641242399075,0.4136,45818.0,45813.0,0.09482466]
[1641242399076,0.83725846,45816.0,45813.0,0.09482466]
[1641242399676,0.83725846,45816.0,45813.0,0.14482466]
[1641242400079,0.4136,45818.0,45813.0,0.14482466]
[1641242400882,0.4136,45818.0,45813.0,0.19482466]
[1641242401682,0.4136,45818.0,45814.0,0.054559]
[1641242401884,0.4136,45818.0,45816.0,0.054554]
[1641242402083,0.4136,45818.0,45816.0,0.06093315]
[1641242402329,0.00812025,45822.0,45816.0,0.054554]
[1641242402526,0.00812025,45822.0,45819.0,0.00663545]
[1641242402728,0.00812025,45822.0,45820.0,0.054554]
[1641242402927,0.00812025,45822.0,45821.0,0.07232207]
[1641242403127,0.00812025,45822.0,45821.0,0.12737168]
[1641242403327,0.00812025,45822.0,45821.0,0.43621171]
[1641242403529,0.00812025,45822.0,45821.0,0.67772759]
[1641242405973,0.00787761,45822.0,45821.0,0.67772759]
[1641242406176,0.00787761,45822.0,45821.0,0.81922025]
[1641242406577,0.00787761,45822.0,45821.0,0.91434535]
[1641242406977,0.00787761,45822.0,45821.0,0.81922025]
[1641242408179,0.00787761,45822.0,45821.0,0.07232207]